fUST/lending_fUST_20260105
["ID","MTS","AMOUNT","RATE_DAILY","PERIOD"]
[400450573,1767569551492,500.0,9.477e-05,2]
[400450574,1767569558320,162.29,8.615e-05,2]
[400450575,1767569558720,185.48,8.934e-05,2]
[400450576,1767569559184,208.66,9.253e-05,2]
[400450577,1767569560137,5.23847537,9.477e-05,2]
[400450578,1767569560169,494.76152463,9.477e-05,2]
[400450579,1767569560383,500.0,9.477e-05,2]
[400450580,1767569560420,500.0,9.477e-05,2]
[400450581,1767569573287,500.0,9.477e-05,2]
[400450582,1767569573323,500.0,9.477e-05,2]
[400450583,1767569573359,500.0,9.477e-05,2]
[400450584,1767569573402,500.0,9.477e-05,2]
[400450585,1767569573444,500.0,9.477e-05,2]
[400450586,1767569573492,500.0,9.477e-05,2]
[400450587,1767569573546,500.0,9.477e-05,2]
[400450588,1767569573584,500.0,9.477e-05,2]
[400450589,1767569573621,300.0,9.477e-05,2]
[400450590,1767569573662,500.0,9.477e-05,2]
[400450591,1767569573703,300.0,9.477e-05,2]
[400450592,1767569588327,500.0,9.477e-05,2]
[400450593,1767569588362,500.0,9.477e-05,2]
[400450594,1767569588397,500.0,9.477e-05,2]
[400450595,1767569588436,500.0,9.477e-05,2]
[400450597,1767569620595,500.0,9.477e-05,2]
[400450598,1767569620635,573.70620098,9.477e-05,2]
[400450599,1767569620672,331.54227439,9.477e-05,2]
[400450600,1767569620704,168.45772561,9.477e-05,2]
[400450601,1767569620752,500.0,9.477e-05,2]
[400450602,1767569620797,500.0,9.477e-05,2]
[400450603,1767569620834,300.0,9.477e-05,2]
[400450604,1767569648497,500.0,9.477e-05,2]
[400450605,1767569648528,573.70620098,9.477e-05,2]
[400450606,1767569648566,500.0,9.477e-05,2]
[400450607,1767569648600,500.0,9.477e-05,2]
[400450608,1767569648635,500.0,9.477e-05,2]
[400450609,1767569648668,500.0,9.477e-05,2]
[400450610,1767569653162,176.0,8.3e-07,2]
[400450611,1767569654195,176.0,8.3e-07,2]
[400450612,1767569655215,176.0,8.3e-07,2]
[400450613,1767569661585,500.0,9.477e-05,2]
[400450614,1767569661620,500.0,9.477e-05,2]
[400450615,1767569661654,500.0,9.477e-05,2]
[400450616,1767569661687,500.0,9.477e-05,2]
[400450617,1767569661914,500.0,9.477e-05,2]
[400450618,1767569661945,500.0,9.477e-05,2]
[400450619,1767569661982,500.0,9.477e-05,2]
[400450620,1767569662015,500.0,9.477e-05,2]
[400450621,1767569662226,500.0,9.477e-05,2]
[400450622,1767569662258,429.84607341,9.477e-05,2]
[400450623,1767569662284,70.15392659,9.477e-05,2]
[400450624,1767569662673,500.0,9.477e-05,2]
[400450625,1767569662703,500.0,9.477e-05,2]
[400450626,1767569662733,500.0,9.477e-05,2]
[400450627,1767569662868,250.0,9.477e-05,2]
[400450628,1767569662897,250.0,9.477e-05,2]
[400450629,1767569662956,500.0,9.477e-05,2]
[400450630,1767569663290,500.0,9.477e-05,2]
[400450631,1767569663601,200.0,9.477e-05,2]
[400450632,1767569685036,226.29379902,9.477e-05,2]
[400450633,1767569685074,500.0,9.477e-05,2]
[400450634,1767569692969,500.0,9.477e-05,2]
[400450635,1767569693021,500.0,9.477e-05,2]
[400450636,1767569693074,500.0,9.477e-05,2]
[400450637,1767569693137,500.0,9.477e-05,2]
[400450638,1767569693479,500.0,9.477e-05,2]
[400450639,1767569693517,650.0,9.477e-05,2]
[400450640,1767569701515,300.0,9.477e-05,2]
[400450641,1767569702961,252.97960361,9.477e-05,2]
[400450642,1767569712465,250.0,9.478e-05,2]
[400450643,1767569713027,250.0,9.478e-05,2]
[400450644,1767569713647,250.0,9.478e-05,2]
[400450645,1767569713882,151.0,9.478e-05,2]
[400450646,1767569714284,250.0,9.478e-05,2]
[400450647,1767569714947,250.0,9.478e-05,2]
[400450648,1767569715563,250.0,9.478e-05,2]
[400450649,1767569716246,250.0,9.478e-05,2]
[400450650,1767569716870,250.0,9.478e-05,2]
[400450651,1767569723839,149.58267078,9.478e-05,2]
[400450652,1767569723865,179.24573626,9.478e-05,2]
[400450653,1767569730370,553.64373807,9.478e-05,2]
[400450654,1767569730833,-3102.00075477,9.478e-05,2]
[400450655,1767569730879,-10000.01,9.478e-05,2]
[400450656,1767569761634,-454.34768061,9.451e-05,2]
[400450657,1767569761668,-151.0,9.478e-05,2]
[400450658,1767569761700,-151.0,9.478e-05,2]
[400450659,1767569761732,-151.0,9.478e-05,2]
[400450660,1767569761763,-151.0,9.478e-05,2]
[400450661,1767569761795,-151.0,9.478e-05,2]
[400450662,1767569761825,-151.0,9.478e-05,2]
[400450663,1767569778880,-10000.01,9.478e-05,2]
[400450664,1767569779002,-10000.01,9.478e-05,2]
[400450665,1767569779104,-10000.01,9.478e-05,2]
[400450666,1767569779289,-10000.01,9.478e-05,2]
[400450667,1767569779531,-10000.01,9.478e-05,2]
[400450668,1767569779721,-10000.01,9.478e-05,2]
[400450669,1767569779934,-10000.01,9.478e-05,2]
[400450670,1767569780145,-10000.01,9.478e-05,2]
[400450671,1767569780375,-10000.01,9.478e-05,2]
[400450672,1767569780597,-10000.01,9.478e-05,2]
[400450673,1767569819430,5000.0,9.284e-05,2]
[400450674,1767569822370,300.0,9.377e-05,2]
[400450675,1767569823933,236.64,7.053e-05,2]
[400450676,1767569824362,473.27,7.389e-05,2]
[400450677,1767569824800,709.91,7.725e-05,2]
[400450678,1767569825209,946.54,8.061e-05,2]
[400450679,1767569825329,500.0,9.377e-05,2]
[400450680,1767569825403,199.45592747,9.377e-05,2]
[400450681,1767569825547,500.0,9.377e-05,2]
[400450682,1767569825639,500.0,9.377e-05,2]
[400450683,1767569825698,634.19407253,8.397e-05,2]
[400450684,1767569825726,548.98592747,8.397e-05,2]
[400450685,1767569825764,500.0,9.377e-05,2]
[400450686,1767569825833,260.84841794,9.377e-05,2]
[400450687,1767569826077,500.0,9.377e-05,2]
[400450688,1767569826116,1419.81,8.732e-05,2]
[400450689,1767569826245,500.0,9.377e-05,2]
[400450690,1767569826627,1656.45,9.068e-05,2]
[400450691,1767569828007,300.26663339,9.377e-05,2]
[400450692,1767569828039,500.0,9.377e-05,2]
[400450693,1767569828071,200.0,9.377e-05,2]
[400450694,1767569828107,500.0,9.377e-05,2]
[400450695,1767569828144,500.0,9.377e-05,2]
[400450696,1767569828187,500.0,9.377e-05,2]
[400450697,1767569828226,500.0,9.377e-05,2]
[400450698,1767569828271,500.0,9.377e-05,2]
[400450699,1767569828309,500.0,9.377e-05,2]
[400450700,1767569828347,500.0,9.377e-05,2]
[400450701,1767569828397,113.6490212,9.377e-05,2]
[400450702,1767569828429,386.3509788,9.377e-05,2]
[400450703,1767569828463,500.0,9.377e-05,2]
[400450704,1767569828498,500.0,9.377e-05,2]
[400450705,1767569828535,359.18315813,9.377e-05,2]
[400450706,1767569828576,500.0,9.377e-05,2]
[400450707,1767569828609,500.0,9.377e-05,2]
[400450708,1767569828645,500.0,9.377e-05,2]
[400450709,1767569828677,500.0,9.377e-05,2]
[400450710,1767569828710,351.14510896,9.377e-05,2]
[400450711,1767569828744,500.0,9.377e-05,2]
[400450712,1767569828783,500.0,9.377e-05,2]
[400450713,1767569828822,500.0,9.377e-05,2]
[400450714,1767569829019,500.0,9.377e-05,2]
[400450715,1767569829064,500.0,9.377e-05,2]
[400450716,1767569829113,500.0,9.377e-05,2]
[400450717,1767569829148,500.0,9.377e-05,2]
[400450718,1767569829192,500.0,9.377e-05,2]
[400450719,1767569829233,500.0,9.377e-05,2]
[400450720,1767569829268,500.0,9.377e-05,2]
[400450721,1767569829307,500.0,9.377e-05,2]
[400450722,1767569829342,403.33075411,9.377e-05,2]
[400450723,1767569829372,96.66924589,9.377e-05,2]
[400450724,1767569829411,500.0,9.377e-05,2]
[400450725,1767569839980,500.0,9.377e-05,2]
[400450726,1767569840040,500.0,9.377e-05,2]
[400450727,1767569840075,500.0,9.377e-05,2]
[400450728,1767569842502,5000.0,9.378e-05,2]
[400450729,1767569865472,2903.34075411,9.378e-05,2]
[400450730,1767569865502,2096.65924589,9.378e-05,2]
[400450731,1767569882287,300.0,9.377e-05,2]
[400450732,1767569885497,240.59439208,9.377e-05,2]
[400450733,1767569886660,168.06260476,9.377e-05,2]
[400450734,1767569889215,5000.0,9.378e-05,2]
[400450735,1767569899368,-2194.69375727,9.378e-05,2]
[400450736,1767569899544,-10000.01,9.378e-05,2]
[400450737,1767569899750,-10000.01,9.378e-05,2]
[400450738,1767569899927,-10000.01,9.378e-05,2]
[400450739,1767569900144,-10000.01,9.378e-05,2]
[400450740,1767569902162,152.31,7.153e-05,2]
[400450741,1767569902571,304.61,7.494e-05,2]
[400450742,1767569903037,456.92,7.834e-05,2]
[400450743,1767569916347,-945.12034457,8.093e-05,2]
[400450744,1767569919685,-545.31019681,8.093e-05,2]
[400450745,1767569921779,-251.19992171,8.093e-05,2]
[400450746,1767569923993,-190.33105522,8.093e-05,2]
[400450747,1767569925464,-250.4574325,8.093e-05,2]
[400450748,1767569928398,-2817.58104919,8.093e-05,2]
[400450749,1767569928433,-609.23,8.175e-05,2]
[400450750,1767569928466,-761.54,8.516e-05,2]
[400450751,1767569928499,-709.46790162,8.856e-05,2]
[400450752,1767569928569,-204.37209838,8.856e-05,2]
[400450753,1767569928606,-1066.15,9.197e-05,2]
[400450754,1767569928637,-638.68638865,9.377e-05,2]
[400450755,1767569935562,5000.0,9.378e-05,2]
[400450756,1767569942390,300.0,9.377e-05,2]
[400450757,1767569947707,500.0,9.377e-05,2]
[400450758,1767569947765,500.0,9.377e-05,2]
[400450759,1767569947815,290.3372227,9.377e-05,2]
[400450760,1767569947844,13.5141362,9.377e-05,2]
[400450761,1767569954483,198.34075727,9.202e-05,2]
[400450762,1767569957963,-3197.81788383,9.378e-05,2]
[400450763,1767569958298,-10000.01,9.378e-05,2]
[400450764,1767569958538,-10000.01,9.378e-05,2]
[400450765,1767569958617,5000.0,9.378e-05,2]
[400450766,1767569958722,-5000.01,9.378e-05,2]
[400450767,1767569959113,-10000.01,9.378e-05,2]
[400450768,1767569959128,-10000.01,9.378e-05,2]
[400450769,1767569959224,-10000.01,9.378e-05,2]
[400450770,1767569979170,245.26,7.461e-05,2]
[400450771,1767569979610,367.89,7.8e-05,2]
[400450772,1767569991340,-180.32183878,8.139e-05,2]
[400450773,1767569994448,-269.0967354,8.139e-05,2]
[400450774,1767569995424,-41.10142582,8.139e-05,2]
[400450775,1767569995461,-613.15,8.478e-05,2]
[400450776,1767569995496,-735.78,8.817e-05,2]
[400450777,1767569995531,-858.41,9.156e-05,2]
[400450778,1767569995564,-503.12714836,9.284e-05,2]
[400450779,1767569995652,-4496.87285164,9.284e-05,2]
[400450780,1767570002377,300.0,9.377e-05,2]
[400450781,1767570006144,5000.0,9.378e-05,2]
[400450782,1767570011742,500.0,0.00015,10]
[400450783,1767570024994,500.0,0.00015,10]
[400450784,1767570031216,5000.0,9.378e-05,2]
[400450785,1767570049558,207.44695063,9.278e-05,2]
[400450786,1767570054463,3384.61380594,9.378e-05,2]
[400450787,1767570055653,192.27,8.047e-05,2]
[400450788,1767570056077,288.41,8.413e-05,2]
[400450789,1767570056389,191.13599358,9.377e-05,2]
[400450790,1767570057037,384.54,8.779e-05,2]
[400450791,1767570057464,351.59324985,9.144e-05,2]
[400450792,1767570057494,129.08675015,9.144e-05,2]
[400450793,1767570060077,198.32869398,9.377e-05,2]
[400450794,1767570060109,500.0,9.377e-05,2]
[400450795,1767570060169,160.24485187,9.377e-05,2]
[400450796,1767570060234,500.0,9.377e-05,2]
[400450797,1767570060892,577.4660277,9.073e-05,2]
[400450798,1767570068643,226.18935038,9.377e-05,2]
[400450799,1767570081571,618.53017288,9.377e-05,2]
[400450800,1767570081607,383.20027748,9.377e-05,2]
[400450801,1767570081641,500.0,9.377e-05,2]
[400450802,1767570081674,500.0,9.377e-05,2]
[400450803,1767570081828,500.0,9.377e-05,2]
[400450804,1767570081871,476.7682238,9.377e-05,2]
[400450805,1767570081904,500.0,9.377e-05,2]
[400450806,1767570081935,268.95398741,9.377e-05,2]
[400450807,1767570100995,3961.24166435,9.378e-05,2]
[400450808,1767570101021,1038.75833565,9.378e-05,2]
[400450809,1767570122308,300.0,9.377e-05,2]
[400450810,1767570124443,1358.93677617,9.378e-05,2]
[400450811,1767570125118,500.0,9.377e-05,2]
[400450812,1767570133084,500.0,9.377e-05,2]
[400450813,1767570134185,170.95,7.155e-05,2]
[400450814,1767570134635,256.42,7.48e-05,2]
[400450815,1767570135166,341.9,7.805e-05,2]
[400450816,1767570135765,427.37,8.131e-05,2]
[400450817,1767570136309,512.85,8.456e-05,2]
[400450818,1767570136785,598.32,8.781e-05,2]
[400450819,1767570137206,683.8,9.106e-05,2]
[400450820,1767570140277,1752.07043021,9.378e-05,2]
[400450821,1767570148897,1558.63445797,9.378e-05,2]
[400450822,1767570148922,3441.36554203,9.378e-05,2]
[400450823,1767570176392,-1258.64445797,9.378e-05,2]
[400450824,1767570176552,-10000.01,9.378e-05,2]
[400450825,1767570176798,-10000.01,9.378e-05,2]
[400450826,1767570177102,-10000.01,9.378e-05,2]
[400450827,1767570177295,-10000.01,9.378e-05,2]
[400450828,1767570208627,187.2,7.151e-05,2]
[400450829,1767570209043,280.8,7.476e-05,2]
[400450830,1767570209472,374.41,7.801e-05,2]
[400450831,1767570216381,-360.46433296,8.127e-05,2]
[400450832,1767570218583,-107.54566704,8.127e-05,2]
[400450833,1767570218610,-256.86847326,8.452e-05,2]
[400450834,1767570220757,-304.74152674,8.452e-05,2]
[400450835,1767570220783,-18.91400738,8.777e-05,2]
[400450836,1767570223495,-193.00542641,8.777e-05,2]
[400450837,1767570225091,-169.3686996,8.777e-05,2]
[400450838,1767570227308,-188.32954994,8.777e-05,2]
[400450839,1767570228085,-85.59231667,8.777e-05,2]
[400450840,1767570228121,-748.81,9.102e-05,2]
[400450841,1767570228150,-3331.20536666,9.191e-05,2]
[400450842,1767570228204,-1668.79463334,9.191e-05,2]
[400450843,1767570228241,-5000.0,9.284e-05,2]
[400450844,1767570234284,500.0,0.00015,10]
[400450845,1767570241062,0.01,9.378e-05,2]
[400450846,1767570241086,4999.99,9.378e-05,2]
[400450847,1767570247370,1854.4318076,9.297e-05,2]
[400450848,1767570255822,448.48965642,9.099e-05,2]
[400450849,1767570255959,500.0,0.00015,10]
[400450850,1767570264113,2697.09853598,9.378e-05,2]
[400450851,1767570264138,2302.90146402,9.378e-05,2]
[400450852,1767570283498,190.47,7.098e-05,2]
[400450853,1767570283907,380.95,7.436e-05,2]
[400450854,1767570284383,571.42,7.774e-05,2]
[400450855,1767570284782,761.9,8.112e-05,2]
[400450856,1767570285333,952.37,8.45e-05,2]
[400450857,1767570285737,1142.85,8.788e-05,2]
[400450858,1767570286132,1333.32,9.126e-05,2]
[400450859,1767570287879,2363.82853598,9.378e-05,2]
[400450860,1767570304525,5000.0,9.308e-05,2]
[400450862,1767570346118,-300.0,9.376e-05,2]
[400450863,1767570346154,-500.0,9.377e-05,2]
[400450864,1767570346189,-266.01175538,9.377e-05,2]
[400450865,1767570346226,-500.0,9.377e-05,2]
[400450866,1767570346261,-500.0,9.377e-05,2]
[400450867,1767570346295,-500.0,9.377e-05,2]
[400450868,1767570346331,-500.0,9.377e-05,2]
[400450869,1767570346370,-500.0,9.377e-05,2]
[400450870,1767570346408,-500.0,9.377e-05,2]
[400450871,1767570346447,-500.0,9.377e-05,2]
[400450872,1767570346485,-367.98648924,9.377e-05,2]
[400450873,1767570357963,-132.01351076,9.377e-05,2]
[400450874,1767570357999,-500.0,9.377e-05,2]
[400450875,1767570358033,-500.0,9.377e-05,2]
[400450876,1767570358067,-500.0,9.377e-05,2]
[400450877,1767570358101,-500.0,9.377e-05,2]
[400450878,1767570358134,-500.0,9.377e-05,2]
[400450879,1767570358166,-641.22843012,9.377e-05,2]
[400450880,1767570358197,-500.0,9.377e-05,2]
[400450881,1767570358230,-500.0,9.377e-05,2]
[400450882,1767570358262,-500.0,9.377e-05,2]
[400450883,1767570367502,-259.34177295,8.369e-05,2]
[400450884,1767570370262,-22.64822705,8.369e-05,2]
[400450885,1767570370284,-165.4879153,8.474e-05,2]
[400450886,1767570370313,-27.0446672,8.749e-05,2]
[400450887,1767570372262,-395.9453328,8.749e-05,2]
[400450888,1767570372294,-1250.81620976,9.099e-05,2]
[400450889,1767570372330,-563.99,9.129e-05,2]
[400450890,1767570372363,-661.28970955,9.187e-05,2]
[400450891,1767570440111,195.5,7.162e-05,2]
[400450892,1767570440574,391.0,7.503e-05,2]
[400450893,1767570440987,586.5,7.844e-05,2]
[400450894,1767570441861,782.01,8.185e-05,2]
[400450895,1767570442283,977.51,8.526e-05,2]
[400450896,1767570442713,1173.01,8.867e-05,2]
[400450897,1767570443165,150.39749578,9.208e-05,2]
[400450898,1767570443194,1218.11250422,9.208e-05,2]
[400450899,1767570460255,8781.89749578,8.377e-05,2]
[400450900,1767570460280,1110.17351492,8.377e-05,2]
[400450901,1767570482102,5000.0,9.247e-05,2]
[400450902,1767570490955,3889.83648508,9.247e-05,2]
[400450903,1767570490981,1110.16351492,9.247e-05,2]
[400450904,1767570506789,1455.51539079,9.247e-05,2]
[400450905,1767570514591,5000.0,9.247e-05,2]
[400450906,1767570517992,343.28,7.189e-05,2]
[400450907,1767570518407,686.56,7.531e-05,2]
[400450908,1767570518814,1029.84,7.873e-05,2]
[400450909,1767570519278,374.65109429,8.215e-05,2]
[400450910,1767570519311,998.46890571,8.215e-05,2]
[400450911,1767570519672,1716.4,8.558e-05,2]
[400450912,1767570520089,2059.68,8.9e-05,2]
[400450913,1767570520596,2402.97,9.242e-05,2]
[400450914,1767570537727,2822.49109429,9.247e-05,2]
[400450915,1767570537754,2177.50890571,9.247e-05,2]
[400450918,1767570560993,5000.0,9.247e-05,2]
[400450922,1767570584619,2822.50109429,9.247e-05,2]
[400450923,1767570584648,2177.49890571,9.247e-05,2]
[400450924,1767570595464,358.53,7.471e-05,2]
[400450925,1767570595906,717.05,7.827e-05,2]
[400450926,1767570596498,1075.58,8.183e-05,2]
[400450927,1767570596926,1434.1,8.538e-05,2]
[400450928,1767570597426,1792.63,8.894e-05,2]
[400450929,1767570608782,2444.62109429,9.247e-05,2]
[400450956,1767570632103,-2555.37890571,9.247e-05,2]
[400450959,1767570632117,-2151.16,9.25e-05,2]
[400450962,1767570632126,-550.0,9.25e-05,2]
[400450965,1767570632136,-260.69355882,9.313e-05,2]
[400450967,1767570632145,-553.64373807,9.372e-05,2]
[400450969,1767570632155,-151.0,9.372e-05,2]
[400450971,1767570632165,-300.0,9.375e-05,2]
[400450973,1767570632174,-300.0,9.375e-05,2]
[400450976,1767570632184,-50000.0,9.376e-05,2]
[400450978,1767570632193,-210.96407701,9.376e-05,2]
[400450980,1767570632203,-500.0,9.376e-05,2]
[400450982,1767570632213,-500.0,9.376e-05,2]
[400450984,1767570632222,-500.0,9.376e-05,2]
[400450986,1767570632232,-500.0,9.376e-05,2]
[400450987,1767570632242,-500.0,9.376e-05,2]
[400450988,1767570632251,-500.0,9.376e-05,2]
[400450989,1767570632260,-500.0,9.376e-05,2]
[400450990,1767570632270,-500.0,9.376e-05,2]
[400450991,1767570632279,-500.0,9.376e-05,2]
[400450992,1767570632289,-412.80206562,9.376e-05,2]
[400450993,1767570632298,-500.0,9.376e-05,2]
[400450994,1767570632307,-500.0,9.376e-05,2]
[400450995,1767570632317,-500.0,9.376e-05,2]
[400450996,1767570632327,-500.0,9.376e-05,2]
[400450997,1767570632336,-585.11241727,9.376e-05,2]
[400450998,1767570632345,-500.0,9.376e-05,2]
[400450999,1767570632354,-438.96144593,9.376e-05,2]
[400451000,1767570632363,-500.0,9.376e-05,2]
[400451001,1767570632372,-500.0,9.376e-05,2]
[400451002,1767570632382,-500.0,9.376e-05,2]
[400451003,1767570632391,-500.0,9.376e-05,2]
[400451004,1767570632402,-500.0,9.376e-05,2]
[400451005,1767570632411,-500.0,9.376e-05,2]
[400451006,1767570632423,-250.0,9.376e-05,2]
[400451007,1767570632435,-500.0,9.376e-05,2]
[400451008,1767570632445,-500.0,9.376e-05,2]
[400451009,1767570632454,-420.48911786,9.376e-05,2]
[400451010,1767570632467,-500.0,9.376e-05,2]
[400451011,1767570632477,-500.0,9.376e-05,2]
[400451012,1767570632486,-500.0,9.376e-05,2]
[400451013,1767570632496,-597.85026962,9.376e-05,2]
[400451014,1767570632506,-500.0,9.376e-05,2]
[400451015,1767570632515,-500.0,9.376e-05,2]
[400451016,1767570632525,-500.0,9.376e-05,2]
[400451017,1767570632534,-500.0,9.376e-05,2]
[400451018,1767570632544,-500.0,9.376e-05,2]
[400451019,1767570632554,-500.0,9.376e-05,2]
[400451020,1767570632564,-500.0,9.376e-05,2]
[400451021,1767570632574,-350.0,9.376e-05,2]
[400451022,1767570632583,-500.0,9.376e-05,2]
[400451023,1767570632592,-500.0,9.376e-05,2]
[400451024,1767570632602,-500.0,9.376e-05,2]
[400451025,1767570632611,-500.0,9.376e-05,2]
[400451026,1767570632621,-7166.43273749,9.378e-05,2]
[400451027,1767570632633,-294.49516258,9.378e-05,2]
[400451033,1767570637964,-500.0,9.376e-05,2]
[400451034,1767570637975,-178.05448273,9.376e-05,2]
[400451035,1767570637985,-492.20610004,9.376e-05,2]
[400451102,1767570640406,-3e-08,9.376e-05,2]
[400451104,1767570640418,-7.79389993,9.376e-05,2]
[400451106,1767570640432,-500.0,9.376e-05,2]
[400451108,1767570640444,-500.0,9.376e-05,2]
[400451110,1767570640453,-500.0,9.376e-05,2]
[400451112,1767570640462,-500.0,9.376e-05,2]
[400451114,1767570640472,-500.0,9.376e-05,2]
[400451115,1767570640482,-500.0,9.376e-05,2]
[400451117,1767570640492,-500.0,9.376e-05,2]
[400451120,1767570640502,-36812.68509809,9.378e-05,2]
[400451122,1767570640513,-41565.30725724,9.378e-05,2]
[400451146,1767570646568,-13408.547363,9.378e-05,2]
[400451147,1767570646579,-2080.75000043,9.378e-05,2]
[400451148,1767570646589,-2455.38369134,9.378e-05,2]
[400451149,1767570654581,5000.0,9.237e-05,2]
[400451150,1767570674382,267.58,8.118e-05,2]
[400451151,1767570674899,535.16,8.505e-05,2]
[400451152,1767570675305,802.74,8.891e-05,2]
[400451153,1767570677324,3394.53,9.237e-05,2]
[400451154,1767570692975,-1605.47,9.237e-05,2]
[400451155,1767570700849,5000.0,9.237e-05,2]
[400451156,1767570724171,1789.07,9.237e-05,2]
[400451157,1767570724201,3210.93,9.237e-05,2]
[400451158,1767570727545,6016.4872839,8.403e-05,2]
[400451159,1767570748246,772.5927161,9.237e-05,2]
[400451160,1767570748273,4227.4072839,9.237e-05,2]
[400451161,1767570753695,256.11,7.941e-05,2]
[400451162,1767570754124,512.21,8.319e-05,2]
[400451163,1767570754544,768.32,8.697e-05,2]
[400451164,1767570754960,1024.42,9.075e-05,2]
[400451165,1767570764098,259.34177295,9.237e-05,2]
[400451166,1767570772026,2952.20094315,9.237e-05,2]
[400451167,1767570772052,2047.79905685,9.237e-05,2]
[400451168,1767570795331,5000.0,9.237e-05,2]
[400451169,1767570819312,2952.21094315,9.237e-05,2]
[400451170,1767570819349,2047.78905685,9.237e-05,2]
[400451171,1767570831664,337.03,7.867e-05,2]
[400451172,1767570832080,674.06,8.242e-05,2]
[400451173,1767570832496,1011.1,8.617e-05,2]
[400451174,1767570832943,1348.13,8.991e-05,2]
[400451175,1767570842311,4581.90094315,9.237e-05,2]
[400451176,1767570842342,418.09905685,9.237e-05,2]
[400451179,1767570865604,5000.0,9.237e-05,2]
[400451180,1767570889962,4581.91094315,9.237e-05,2]
[400451181,1767570910898,353.56,7.962e-05,2]
[400451182,1767570911345,707.11,8.341e-05,2]
[400451183,1767570911790,1060.67,8.72e-05,2]
[400451184,1767570912235,1414.23,9.099e-05,2]
[400451185,1767570918789,-418.08905685,9.237e-05,2]
[400451186,1767570936566,5000.0,9.237e-05,2]
[400451188,1767570960222,4163.8318863,9.237e-05,2]
[400451189,1767570960251,836.1681137,9.237e-05,2]
[400451190,1767570983855,5000.0,9.237e-05,2]
[400451191,1767570990358,507.34,7.774e-05,2]
[400451192,1767570990822,1014.68,8.144e-05,2]
[400451193,1767570991298,1522.01,8.515e-05,2]
[400451194,1767570991650,1119.8118863,8.885e-05,2]
[400451195,1767570991680,909.5381137,8.885e-05,2]
[400451196,1767571007107,5000.0,9.237e-05,2]
[400451197,1767571031334,4090.4718863,9.237e-05,2]
[400451198,1767571031364,909.5281137,9.237e-05,2]
[400451199,1767571054796,5000.0,9.237e-05,2]
[400451200,1767571070152,537.56,7.903e-05,2]
[400451201,1767571070629,1075.12,8.279e-05,2]
[400451202,1767571071024,1612.68,8.655e-05,2]
[400451203,1767571071629,865.1218863,9.032e-05,2]
[400451204,1767571071658,1285.1181137,9.032e-05,2]
[400451205,1767571077854,5000.0,9.237e-05,2]
[400451206,1767571091525,3714.8918863,8.342e-05,2]
[400451207,1767571091552,3010.8235824,8.342e-05,2]
[400451208,1767571100879,5000.0,9.226e-05,2]
[400451209,1767571124555,1989.1864176,9.226e-05,2]
[400451210,1767571124582,3010.8135824,9.226e-05,2]
[400451211,1767571140985,5000.0,9.226e-05,2]
[400451212,1767571149423,1989.1964176,9.226e-05,2]
[400451213,1767571149448,3010.8035824,9.226e-05,2]
[400451214,1767571149756,581.48,7.731e-05,2]
[400451215,1767571150150,1162.95,8.099e-05,2]
[400451216,1767571150544,1744.43,8.467e-05,2]
[400451217,1767571150946,2325.91,8.835e-05,2]
[400451218,1767571151349,1174.4364176,9.204e-05,2]
[400451219,1767571151378,1732.9435824,9.204e-05,2]
[400451220,1767571165494,737.00000001,9.215e-05,2]
[400451221,1767571173505,5000.0,9.215e-05,2]
[400451222,1767571196305,2530.06641759,9.215e-05,2]
[400451223,1767571196332,2469.93358241,9.215e-05,2]
[400451224,1767571219655,5000.0,9.215e-05,2]
[400451225,1767571228662,596.82,7.707e-05,2]
[400451226,1767571229077,1193.64,8.074e-05,2]
[400451227,1767571229539,739.61641759,8.441e-05,2]
[400451228,1767571229568,1050.84358241,8.441e-05,2]
[400451229,1767571229950,2387.28,8.808e-05,2]